bitfinex-derivatives/quotes_ETHF0:USTF0_20250904
["timestamp","ask_amount","ask_price","bid_price","bid_amount"]
[1756997158914,1.0752,4354.9,4354.7,2.8814086]
[1756997159115,1.0752,4354.9,4354.8,0.236]
[1756997159316,2.472,4354.8,4354.7,2.8814086]
[1756997159516,2.472,4354.8,4354.7,3.1174086]
[1756997159716,2.472,4354.8,4354.7,0.236]
[1756997160018,1.0752,4354.7,4354.6,2.8814086]
[1756997160218,2.472,4354.7,4354.6,2.8814086]
[1756997160515,2.472,4354.7,4354.6,2.29340193]
[1756997160709,6.472,4354.7,4354.6,1.20780193]
[1756997160914,6.472,4354.7,4354.6,0.236]
[1756997163024,0.4241,4354.5,4353.6,3.5883086]
[1756997163226,1.79,4354.4,4354.3,0.6816]
[1756997163522,1.79,4354.4,4354.3,0.9176]
[1756997163723,1.79,4354.4,4354.3,1.6367]
[1756997166228,1.0752,4354.9,4354.3,10.43505239]
[1756997166526,1.0752,4354.9,4354.3,6.43505239]
[1756997166720,1.0752,4354.9,4354.3,9.31646099]
[1756997167226,0.4241,4355.0,4354.3,9.31646099]
[1756997167426,1.3968,4354.4,4354.3,1.4007]
[1756997167622,1.3968,4354.4,4354.3,0.9176]
[1756997167828,1.3968,4354.4,4354.3,1.6367]
[1756997168032,0.7148,4354.4,4354.3,1.6367]
[1756997168228,1.79,4354.4,4354.3,1.6367]
[1756997169429,1.79,4354.4,4354.3,4.5181086]
[1756997169627,2.472,4354.4,4354.3,4.5181086]
[1756997169827,2.472,4354.4,4354.3,0.9176]
[1756997170025,1.0752,4354.3,4354.2,2.8814086]
[1756997170227,2.472,4354.3,4354.2,0.236]
[1756997170826,2.472,4354.3,4354.2,0.9176]
[1756997171727,2.472,4354.3,4354.2,1.6367]
[1756997171930,2.472,4354.3,4354.2,4.5181086]
[1756997172231,1.79,4354.3,4354.2,4.5181086]
[1756997172728,2.472,4354.3,4354.2,4.5181086]
[1756997172932,2.472,4354.3,4354.2,3.7990086]
[1756997173128,2.472,4354.3,4354.2,0.9176]
[1756997173634,2.472,4354.3,4354.2,3.7990086]
[1756997174821,2.472,4354.3,4354.2,2.8814086]
[1756997175021,2.472,4354.3,4354.2,2.058896]
[1756997175227,2.472,4354.3,4354.2,0.236]
[1756997175634,2.3919,4354.3,4354.2,0.236]
[1756997178830,2.2557,4354.2,4354.1,2.058896]
[1756997179032,3.2508,4354.2,4354.1,2.294896]
[1756997180035,3.2508,4354.2,4354.1,2.058896]
[1756997180235,3.2508,4354.2,4354.1,2.294896]
[1756997180534,3.2508,4354.2,4353.7,1.61913651]
[1756997180535,2.3716,4353.8,4353.7,1.61913651]
[1756997180840,0.9951,4353.7,4353.5,3.4438]
[1756997181136,4.49065239,4354.0,4353.5,3.4438]
[1756997181137,2.3716,4353.6,4353.5,5.50488351]
[1756997181331,2.3716,4353.6,4353.5,2.29708351]
[1756997181536,2.3716,4353.6,4353.5,0.236]
[1756997183434,1.3765,4353.3,4353.2,2.06108351]
[1756997183739,2.3716,4353.2,4353.1,0.6517]
[1756997183936,2.3716,4353.2,4353.1,0.8877]
[1756997184334,2.3716,4353.2,4353.1,1.548]
[1756997184540,2.3716,4353.2,4353.1,2.5142]
[1756997184839,2.3716,4353.2,4353.1,0.236]
[1756997185141,2.3716,4353.2,4353.1,0.4903]
[1756997185342,2.3716,4353.2,4353.1,0.7446]
[1756997185539,0.9951,4353.2,4353.1,4.7446]
[1756997185741,0.3992,4354.0,4353.1,8.87602962]
[1756997185742,1.3943,4354.0,4353.1,8.87602962]
[1756997185942,1.7757,4354.0,4353.6,3.2078]
[1756997186243,0.9951,4353.9,4353.8,2.05819921]
[1756997186540,2.3716,4353.9,4353.8,2.29419921]
[1756997186740,2.3716,4353.9,4353.8,2.54849921]
[1756997186933,2.3716,4353.9,4353.8,2.80279921]
[1756997187136,2.3716,4353.9,4353.8,2.05819921]
[1756997187339,2.3716,4353.9,4353.8,2.29419921]
[1756997187539,2.3716,4353.9,4353.8,0.236]
[1756997188442,0.9951,4353.8,4353.7,2.05819921]
[1756997188738,2.3716,4353.8,4353.7,0.236]
[1756997189339,1.3765,4353.8,4353.6,2.05819921]
[1756997189540,1.7757,4353.5,4353.4,2.05819921]
[1756997189740,2.7708,4353.5,4353.4,0.236]
[1756997190144,2.7708,4353.5,4353.3,2.05819921]
[1756997190339,2.3716,4353.4,4353.3,2.05819921]
[1756997190541,2.3716,4353.4,4353.3,0.236]
[1756997190737,1.3765,4353.4,4353.0,2.45819921]
[1756997191044,1.3765,4353.4,4353.0,0.4]
[1756997191248,1.3765,4352.7,4352.5,2.05920434]
[1756997191441,1.3765,4352.7,4352.6,0.9662]
[1756997192041,0.7103,4352.7,4352.6,2.5142]
[1756997192541,0.7103,4352.7,4352.6,1.8539]
[1756997192746,0.7103,4352.7,4352.6,1.2022]
[1756997192940,0.7103,4352.7,4352.6,0.236]
[1756997193143,0.7103,4352.7,4352.0,0.4021]
[1756997193341,0.7103,4352.7,4352.1,1.2022]
[1756997193542,0.7103,4352.7,4352.6,0.9662]
[1756997193857,0.22976001,4352.6,4352.0,0.6381]
[1756997194052,3.2078,4352.5,4352.1,0.9662]
[1756997194646,3.2078,4352.5,4352.0,1.3683]
[1756997194845,3.2078,4352.5,4352.1,0.9662]
[1756997195046,3.2078,4352.5,4352.1,0.6517]
[1756997195246,3.2078,4352.5,4352.1,0.9662]
[1756997196146,3.2078,4352.5,4352.0,1.0538]
[1756997196448,3.2078,4352.5,4352.1,0.236]
[1756997196647,4.09145239,4352.2,4351.7,0.9662]
[1756997196852,4.09145239,4351.8,4350.9,0.9662]
[1756997197050,3.2078,4351.5,4351.1,0.9662]
[1756997197550,3.2078,4351.5,4350.9,0.237]
[1756997198156,0.236,4351.4,4350.8,0.9662]
[1756997198348,0.236,4351.4,4350.8,1.6179]
[1756997198948,4.09145239,4351.3,4350.5,0.4021]
[1756997199948,0.7963,4350.5,4350.3,4.7558]
[1756997200346,0.7963,4350.5,4350.4,2.2782]
[1756997200545,0.7963,4350.5,4350.4,6.2782]
[1756997200852,0.236,4351.7,4350.6,0.9662]
[1756997201149,0.7103,4351.2,4351.1,0.9662]
[1756997201355,1.3765,4351.2,4351.1,1.8539]
[1756997201555,1.3765,4351.2,4351.1,2.5142]
[1756997201950,0.9463,4351.9,4351.8,2.2782]
[1756997202150,0.7103,4351.9,4351.8,2.5142]
[1756997202451,3.2078,4352.0,4351.9,2.4045]
[1756997202846,3.2078,4352.0,4351.9,0.237]
[1756997203047,3.2078,4352.5,4352.0,0.412]
[1756997203644,1.0581,4352.4,4352.0,0.412]
[1756997203956,1.0581,4352.8,4352.3,3.2078]
[1756997204150,1.0581,4353.2,4352.5,0.412]
[1756997204945,1.0581,4353.2,4352.6,1.0691]
[1756997205154,3.2078,4353.3,4352.7,0.236]
[1756997205356,4.2659,4353.3,4352.8,1.0691]
[1756997205554,3.2078,4353.3,4352.7,0.236]
[1756997205755,3.2078,4353.3,4352.8,1.0691]
[1756997205949,0.9621,4352.6,4352.5,0.412]
[1756997206150,0.9621,4352.6,4352.5,0.236]
[1756997206954,2.0202,4352.6,4352.5,0.236]
[1756997207456,0.9621,4352.6,4352.5,8.32745239]
[1756997207658,3.2078,4353.3,4352.6,0.41342]
[1756997207955,3.2078,4353.3,4353.1,0.0193]
[1756997208154,3.2078,4353.3,4353.2,0.2553]
[1756997208356,1.0581,4353.9,4353.2,3.4631]
[1756997208551,1.0581,4353.9,4353.6,3.2078]
[1756997208756,1.0581,4353.9,4353.7,0.2553]
[1756997209054,1.0581,4354.3,4353.8,0.0193]
[1756997209264,1.0581,4354.4,4354.1,3.2271]
[1756997209450,0.4175,4355.0,4354.2,0.236]
[1756997209651,1.0581,4354.8,4354.3,0.0193]
[1756997210253,1.0581,4354.9,4354.2,0.89336635]
[1756997210453,1.0581,4354.9,4354.5,4.09145239]
[1756997210661,1.0581,4354.9,4354.6,0.2553]
[1756997210960,1.0581,4355.4,4354.7,0.43252]
[1756997211154,3.2078,4355.9,4354.7,0.20709659]
[1756997211354,1.0581,4355.4,4354.8,4.32745239]
[1756997212060,1.0581,4355.4,4355.3,3.2078]
[1756997212255,1.0581,4355.4,4355.3,3.4438]
[1756997212656,1.0581,4355.4,4355.3,7.53525239]
[1756997214060,0.4175,4356.0,4355.3,7.55455239]
[1756997214356,1.0581,4355.4,4355.3,7.53525239]
[1756997214766,1.0581,4355.9,4355.4,0.0193]
[1756997214962,1.4756,4356.0,4355.8,3.2271]
[1756997215167,1.0581,4356.0,4355.9,0.236]
[1756997215368,1.0581,4356.4,4355.9,0.236]
[1756997215572,1.0581,4356.4,4356.3,3.2078]
[1756997215770,1.0581,4356.4,4356.3,3.4438]
[1756997216161,1.0581,4356.9,4356.3,7.4631]
[1756997216364,1.0581,4357.4,4356.8,7.31855239]
[1756997216566,1.0581,4357.4,4357.2,4.09145239]
[1756997216766,1.0581,4357.4,4357.3,0.236]
[1756997216967,1.0581,4357.4,4357.3,3.4438]
[1756997217167,1.4756,4357.5,4357.3,3.4438]
[1756997217372,1.0581,4357.4,4357.3,3.4438]
[1756997218279,0.4175,4358.5,4357.6,0.41294]
[1756997218473,0.4175,4358.5,4357.4,0.0193]
[1756997218474,1.2281,4358.9,4358.5,0.0193]
[1756997218674,1.2281,4358.9,4358.6,0.2553]
[1756997218675,0.17,4358.9,4358.6,0.2553]
[1756997218875,0.17,4358.9,4358.6,0.46442233]
[1756997219276,1.0581,4358.8,4358.6,0.46442233]
[1756997219481,0.17,4358.9,4358.6,0.46442233]
[1756997219681,0.17,4358.9,4358.5,3.2078]
[1756997219882,0.4175,4358.5,4358.0,3.2078]
[1756997220177,1.0581,4358.4,4358.1,0.236]
[1756997220579,1.0581,4358.4,4358.2,0.236]
[1756997221886,1.0581,4358.7,4358.3,0.0193]
[1756997222094,1.0581,4358.7,4358.4,0.2553]
[1756997222583,0.17,4358.9,4358.6,4.69779167]
[1756997222785,0.17,4358.9,4358.7,0.236]
[1756997222978,1.0581,4358.8,4358.7,0.236]
[1756997223181,1.0581,4358.8,4358.5,3.2078]
[1756997223375,0.17,4358.9,4358.5,3.2078]
[1756997223576,1.0581,4358.8,4358.6,0.236]
[1756997223888,1.0581,4358.8,4358.7,0.236]
[1756997226483,4.0,4358.8,4358.5,3.2078]
[1756997226678,4.0,4358.7,4357.4,3.2078]
[1756997226886,1.4756,4357.5,4357.4,3.2078]
[1756997227082,1.4756,4357.5,4357.4,3.4448]
[1756997227283,1.4756,4357.5,4357.4,3.2078]
[1756997227479,1.4756,4357.5,4357.4,3.4448]
[1756997227685,4.4175,4357.5,4357.4,0.237]
[1756997227887,0.4175,4356.5,4356.4,3.2078]
[1756997228089,0.4175,4356.5,4355.9,4.2769]
[1756997228280,1.0581,4356.4,4356.0,0.237]
[1756997228686,1.0581,4356.4,4356.2,4.2769]
[1756997228891,1.0581,4356.4,4356.3,0.237]
[1756997229279,1.0581,4356.9,4356.3,0.237]
[1756997230091,1.0581,4356.9,4356.2,3.2078]
[1756997230392,1.0581,4356.4,4356.3,0.237]
[1756997230789,0.4175,4357.0,4356.3,0.237]
[1756997230790,1.0581,4356.9,4356.3,0.237]
[1756997230984,3.2078,4358.2,4356.7,3.2078]
[1756997231185,0.4175,4358.5,4357.7,3.2078]
[1756997231386,3.2078,4358.4,4357.8,0.237]
[1756997231587,0.4175,4358.5,4357.8,0.237]
[1756997232690,0.4366,4358.0,4357.9,0.237]
[1756997233082,1.4238,4358.0,4357.9,0.237]
[1756997233484,0.4175,4358.5,4357.9,0.237]
[1756997233990,0.4366,4358.0,4357.8,3.2078]
[1756997234181,0.4366,4358.0,4357.3,3.2078]
[1756997234384,0.4366,4357.5,4357.4,0.237]
[1756997234581,0.4366,4358.0,4357.4,0.237]
[1756997234789,0.9872,4357.9,4357.4,0.237]
[1756997235388,0.4366,4358.0,4357.4,0.237]
[1756997235584,0.9872,4357.9,4357.4,0.237]
[1756997235791,1.4238,4357.5,4357.4,0.237]
[1756997238796,1.4238,4357.5,4356.8,4.263]
[1756997238990,1.4238,4357.5,4356.9,0.237]
[1756997239293,1.4238,4357.5,4356.8,4.263]
[1756997239592,1.4238,4357.5,4356.9,1.2922]
[1756997239788,0.4366,4357.5,4356.9,1.2922]
[1756997240095,0.9872,4357.4,4357.0,0.237]
[1756997240290,0.4366,4357.5,4356.8,3.2078]
[1756997240792,0.9872,4356.9,4356.0,1.28915183]
[1756997241100,0.9872,4356.4,4355.8,3.2078]
[1756997241286,0.4366,4356.0,4355.9,0.237]
[1756997241492,0.9872,4356.0,4355.9,0.237]
[1756997241693,1.4238,4356.5,4355.9,0.237]
[1756997242295,1.4238,4356.5,4355.8,4.263]
[1756997242296,1.4238,4356.0,4355.8,3.2078]
[1756997242599,1.4238,4356.0,4355.5,0.18634559]
[1756997242792,3.2078,4355.9,4355.5,0.42334559]
[1756997242996,0.9872,4354.9,4354.8,3.2078]
[1756997243392,0.9872,4354.9,4354.3,3.2078]
[1756997243595,0.9872,4354.9,4354.4,0.237]
[1756997243793,0.4366,4355.0,4354.4,0.237]
[1756997244100,0.9872,4354.9,4354.4,0.237]
[1756997244503,1.4238,4355.0,4354.4,0.237]
[1756997245594,0.4366,4355.0,4354.5,0.237]
[1756997245999,0.9872,4354.9,4354.5,0.237]
[1756997246198,0.9872,4354.4,4354.3,3.2078]
[1756997246397,0.9872,4354.4,4354.3,3.4448]
[1756997247499,0.9872,4354.4,4354.3,3.2078]
[1756997247704,0.9872,4354.4,4354.3,0.237]
[1756997249100,0.9872,4354.4,4353.6,3.2078]
[1756997249101,0.9872,4353.9,4353.6,3.2078]
[1756997249400,0.9872,4353.9,4353.0,3.2078]
[1756997249709,0.9872,4353.9,4353.1,0.237]
[1756997249710,0.9872,4353.4,4353.1,0.237]
[1756997250204,0.9872,4353.4,4353.2,0.237]
[1756997250501,0.9872,4353.4,4353.3,1.0552]
[1756997250704,0.9872,4353.8,4353.3,1.0552]
[1756997250903,0.9872,4353.8,4353.2,1.2922]
[1756997251303,0.1148,4353.9,4353.4,0.41334]
[1756997251494,0.1148,4353.9,4353.7,1.0552]
[1756997251702,0.1148,4353.9,4353.8,1.2922]
[1756997252804,0.1148,4353.9,4353.8,5.2922]
[1756997254305,0.9872,4355.1,4354.6,1.0552]
[1756997254604,3.2078,4355.3,4354.4,3.2078]
[1756997254800,0.9872,4355.2,4354.5,0.237]
[1756997255201,3.2078,4355.3,4354.4,3.2078]
[1756997255202,0.4366,4354.5,4354.4,3.2078]
[1756997255399,1.4238,4354.5,4354.4,3.4448]
[1756997255602,1.4238,4354.5,4354.4,0.237]
[1756997255908,0.9872,4354.4,4353.6,3.2078]
[1756997256103,0.9872,4354.4,4353.7,0.237]
[1756997256305,0.9872,4353.9,4353.0,3.2078]
[1756997256508,0.4366,4354.0,4353.0,3.2078]
[1756997256509,0.9872,4353.4,4353.1,0.237]
[1756997256699,0.4366,4353.5,4353.2,0.237]
[1756997257002,0.4366,4353.5,4353.3,0.237]
[1756997257212,0.9872,4353.4,4353.3,0.237]
[1756997258909,0.4366,4353.5,4352.5,3.2078]
[1756997259207,0.9872,4353.4,4352.6,0.237]
[1756997259709,0.9872,4353.4,4352.6,0.41868183]
[1756997260205,0.9872,4353.4,4352.6,0.18168183]
[1756997260412,0.4366,4353.5,4353.0,3.2078]
[1756997260708,0.4366,4353.5,4353.1,0.237]
[1756997261311,0.9872,4353.4,4353.1,0.237]
[1756997261506,0.4366,4353.5,4353.0,3.2078]
[1756997261907,0.4366,4353.5,4353.1,0.237]
[1756997262212,1.0015,4353.4,4353.1,0.237]
[1756997263703,1.0015,4353.4,4353.0,3.2078]
[1756997263909,1.0015,4353.2,4353.1,0.237]
[1756997266124,1.4096,4352.5,4352.4,34.8828]
[1756997266303,1.4096,4352.5,4352.4,35.1198]
[1756997266605,1.0015,4352.4,4352.3,0.237]
[1756997267012,1.0015,4352.4,4352.3,1.2869]
[1756997267211,1.0015,4352.7,4352.3,0.237]
[1756997267408,1.0015,4352.4,4351.8,1.0499]
[1756997267610,0.4081,4352.5,4351.9,0.237]
[1756997268120,1.0015,4352.4,4352.2,4.2577]
[1756997268321,1.0015,4352.4,4352.3,1.2869]
[1756997268614,1.0015,4352.4,4352.3,0.237]
[1756997268815,1.0015,4352.4,4352.3,1.2869]
[1756997269316,1.0015,4352.4,4352.3,0.237]
[1756997269710,1.0015,4353.2,4352.4,1.0499]
[1756997269916,3.2078,4353.8,4352.8,3.2078]
[1756997270110,3.2078,4353.8,4352.9,0.237]
[1756997270111,1.0015,4353.4,4352.9,0.237]
[1756997270311,0.4081,4353.0,4352.3,3.2078]
[1756997270610,1.0015,4352.4,4352.3,3.2078]
[1756997270817,1.0015,4352.4,4352.3,3.4448]
[1756997271015,1.0015,4352.4,4352.3,0.237]
[1756997271417,1.0015,4352.9,4352.3,1.2869]
[1756997271607,1.0015,4352.9,4352.3,4.4947]
[1756997271806,1.0015,4352.9,4352.4,1.0499]
[1756997272014,1.0015,4352.9,4352.8,4.2577]
[1756997272210,1.0015,4353.4,4352.8,4.4947]
[1756997272913,3.2078,4353.8,4353.0,0.3991]
[1756997273119,3.2078,4353.8,4353.1,1.2869]
[1756997273621,3.2078,4353.8,4353.2,4.92749167]
[1756997273821,1.0015,4353.7,4353.1,0.237]
[1756997275106,3.2078,4353.8,4353.1,0.237]
[1756997275312,1.0015,4353.7,4353.1,1.2869]
[1756997276519,1.0015,4352.9,4352.8,3.2078]
[1756997276715,1.0015,4352.9,4352.8,3.4448]
[1756997276920,1.0015,4353.4,4352.8,4.4947]
[1756997278618,1.0015,4353.4,4352.9,1.0499]
[1756997279317,1.0015,4353.4,4352.8,3.4448]
[1756997279512,1.0015,4353.4,4352.9,1.0499]
[1756997279712,1.0015,4353.7,4352.9,1.0499]
[1756997279913,1.0015,4353.7,4353.1,1.0499]
[1756997280113,1.0015,4353.7,4353.2,0.237]
[1756997280409,3.2078,4353.8,4353.2,0.237]
[1756997280410,0.4081,4354.0,4353.7,1.0499]
[1756997280615,1.0015,4353.9,4353.8,1.2869]
[1756997280812,1.0015,4354.4,4353.8,1.2869]
[1756997281410,1.0015,4354.4,4354.1,4.09210656]
[1756997281615,1.0015,4354.4,4354.2,1.2869]
[1756997281815,1.0015,4354.4,4354.2,0.237]
[1756997282024,1.0015,4354.4,4354.3,4.2577]
[1756997282422,1.0015,4354.4,4354.3,3.2078]
[1756997282626,7.29990656,4355.9,4354.3,4.2577]
[1756997282814,1.0015,4354.9,4354.8,3.2078]
[1756997283117,1.0015,4354.9,4354.8,4.4947]
[1756997283322,1.0015,4354.9,4354.8,3.4448]
[1756997283623,1.0015,4354.9,4354.8,4.4947]
[1756997284019,1.0015,4354.9,4354.8,1.2869]
[1756997284220,1.0015,4354.9,4354.8,3.4448]
[1756997284421,1.0015,4354.9,4354.8,0.237]
[1756997285423,3.2078,4355.4,4354.8,0.237]
[1756997285424,4.2093,4355.4,4354.9,1.0499]
[1756997285726,4.2093,4355.4,4355.0,4.09210656]
[1756997285727,3.2078,4355.4,4355.0,4.09210656]
[1756997285920,1.0015,4355.3,4355.1,1.2869]
[1756997286120,1.0015,4355.3,4354.6,4.09210656]
[1756997286320,3.2078,4355.4,4354.5,1.0499]
[1756997286530,0.7094,4354.7,4354.6,0.9616]
[1756997286716,1.7109,4354.7,4354.6,0.9616]
[1756997286923,2.4207,4354.7,4354.6,0.7246]
[1756997287130,1.4192,4354.7,4354.6,0.237]
[1756997287331,1.4192,4354.7,4354.6,0.9616]
[1756997287524,0.4081,4355.0,4354.6,1.6756]
[1756997287723,0.7094,4354.7,4354.6,2.7255]
[1756997287918,1.7109,4354.7,4354.6,1.6756]
[1756997288228,2.4207,4354.7,4354.6,0.9616]
[1756997289124,1.0015,4355.0,4354.6,0.237]
[1756997289331,1.7109,4355.0,4354.9,2.4885]
[1756997289529,4.2093,4355.4,4355.0,1.0499]
[1756997289832,3.2078,4355.4,4355.3,5.14200656]
[1756997290129,3.2078,4355.4,4355.3,5.37900656]
[1756997290531,4.2093,4355.4,4354.7,7.29990656]
[1756997290729,3.2078,4355.4,4354.7,7.29990656]
[1756997290927,1.0015,4354.9,4354.8,0.237]
[1756997291230,3.2078,4355.4,4354.8,1.2869]
[1756997291826,1.0015,4355.3,4355.2,4.09210656]
[1756997292028,3.2078,4355.4,4355.3,1.0499]
[1756997292333,0.9785,4355.3,4355.2,4.32910656]
[1756997292629,3.2078,4355.4,4355.3,1.0304]
[1756997293336,3.2078,4355.4,4355.0,4.09210656]
[1756997293541,4.1863,4355.4,4355.3,0.237]
[1756997293935,5.5715,4355.4,4355.3,0.237]
[1756997294927,5.5715,4355.4,4355.0,4.09210656]
[1756997295127,0.7091,4354.4,4354.3,32.7214]
[1756997295332,0.9785,4355.0,4354.9,2.4052]
[1756997295534,0.9785,4355.0,4354.9,6.73430656]
[1756997296236,3.2078,4355.4,4354.9,5.70390656]
[1756997296237,4.1863,4355.4,4354.9,5.70390656]
[1756997296440,5.5715,4355.4,4355.3,0.6591]
[1756997296736,5.5715,4355.4,4355.3,0.8961]
[1756997297242,3.2078,4355.4,4355.3,2.6422]
[1756997297536,0.9785,4355.7,4355.3,4.32910656]
[1756997297732,3.2078,4356.2,4355.6,0.6591]
[1756997298042,2.3637,4355.7,4355.6,0.6591]
[1756997298337,2.3637,4355.7,4355.6,0.8961]
[1756997298533,0.9785,4355.3,4354.8,4.2382]
[1756997298731,0.3985,4355.5,4354.8,3.2078]
[1756997298732,2.3637,4354.9,4354.8,3.2078]
[1756997299039,2.3637,4354.9,4354.8,0.237]
[1756997299443,0.9785,4354.8,4354.3,38.66042031]
[1756997299739,2.3637,4354.5,4354.4,2.6422]
[1756997300139,0.3985,4355.0,4354.4,2.6422]
[1756997300336,0.9785,4355.0,4354.7,5.46690656]
[1756997300535,4.8954,4355.2,4355.1,2.4052]
[1756997300738,5.5715,4355.2,4355.1,2.6422]
[1756997301136,3.9169,4355.2,4355.1,2.6422]
[1756997301339,1.6876,4355.6,4355.5,1.3748]
[1756997301540,2.3637,4355.6,4355.5,4.98820656]
[1756997301744,2.3637,4355.6,4355.5,6.73430656]
[1756997302642,0.7091,4355.6,4355.5,6.73430656]
[1756997303035,2.3637,4355.6,4355.5,6.73430656]
[1756997304342,2.3637,4355.6,4355.1,7.29990656]
[1756997304553,2.3637,4355.2,4355.1,3.2078]
[1756997304754,2.3637,4355.2,4355.1,3.4438]
[1756997305547,0.7091,4355.2,4355.1,5.849]
[1756997305752,4.593,4355.8,4355.7,0.6591]
[1756997305944,5.5715,4355.8,4355.7,0.237]
[1756997306147,5.80108,4355.8,4355.7,0.237]
[1756997306551,4.82258,4355.8,4355.7,0.237]
[1756997306846,5.41838,4355.8,4355.7,0.237]
[1756997307349,1.148,4355.1,4355.0,1.0304]
[1756997307553,1.148,4355.1,4355.0,2.3428]
[1756997307851,0.574,4355.1,4355.0,2.8215]
[1756997308052,1.148,4355.1,4355.0,2.3418]
[1756997308354,1.5068,4355.1,4355.0,0.236]
[1756997309444,1.148,4354.6,4354.5,4.32401375]
[1756997309640,1.148,4354.6,4354.5,1.6827]
[1756997309843,0.574,4354.6,4354.5,3.0575]
[1756997310152,0.574,4354.7,4354.6,2.4052]
[1756997310446,3.2078,4355.3,4354.6,2.4052]
[1756997310648,3.2078,4355.3,4354.5,4.74440656]
[1756997310649,0.574,4354.8,4354.7,1.0304]
[1756997310851,1.148,4354.8,4354.7,1.9255]
[1756997311145,0.574,4354.8,4354.7,2.6412]
[1756997311349,3.2078,4355.3,4355.2,1.3748]
[1756997311551,4.3558,4355.3,4355.2,2.6412]
[1756997312454,3.2078,4355.3,4355.2,2.6412]
[1756997312754,3.7818,4355.3,4355.2,2.6412]
[1756997313159,3.2078,4355.3,4355.2,2.6412]
[1756997313548,3.7818,4355.3,4355.2,2.6412]
[1756997314051,3.2078,4355.3,4355.2,2.6412]
[1756997315850,3.2078,4356.0,4355.9,1.3748]
[1756997316045,3.2078,4356.6,4356.0,0.4163]
[1756997316357,3.7818,4356.6,4356.5,2.8215]
[1756997316655,3.7818,4356.6,4356.5,3.0575]
[1756997316855,0.3588,4358.0,4356.5,2.0271]
[1756997316856,3.2078,4357.3,4356.5,2.0271]
[1756997317154,0.574,4357.1,4357.0,2.8215]
[1756997317355,1.148,4357.1,4357.0,1.6827]
[1756997318556,1.148,4357.1,4357.0,2.3418]
[1756997320154,3.2078,4357.3,4357.2,2.4052]
[1756997320360,0.574,4357.6,4357.5,2.1058]
[1756997320550,0.574,4357.6,4357.5,2.3418]
[1756997321058,0.574,4357.6,4357.5,3.0575]
[1756997321255,3.2078,4357.8,4357.5,2.0271]
[1756997321460,3.7818,4357.8,4357.7,1.6895]
[1756997321662,3.2078,4357.8,4357.7,2.6412]
[1756997322554,3.2078,4358.6,4357.7,1.6108]
[1756997322761,4.361,4358.6,4358.5,2.065]
[1756997322959,4.361,4358.6,4358.5,2.301]
[1756997323154,4.361,4358.6,4358.5,2.9557]
[1756997323554,4.361,4358.6,4358.5,2.301]
[1756997323954,4.361,4358.6,4358.5,2.9557]
[1756997325557,3.7844,4358.6,4358.5,2.9557]
[1756997325763,3.2078,4358.6,4358.5,2.9557]
[1756997325955,4.361,4358.6,4358.5,2.9557]
[1756997326150,4.361,4358.6,4358.5,2.301]
[1756997326355,4.361,4358.6,4358.5,2.9557]
[1756997326562,3.7844,4358.6,4358.5,2.9557]
[1756997327161,4.361,4358.6,4358.5,2.9557]
[1756997328162,3.7844,4358.6,4358.5,2.9557]
[1756997328363,4.361,4358.6,4358.5,2.9557]
[1756997329464,3.2078,4358.6,4358.5,2.9557]
[1756997330057,0.001,4359.0,4358.5,1.9661]
[1756997330261,0.3603,4358.8,4358.6,0.9896]
[1756997330556,1.5135,4358.7,4358.6,0.236]
[1756997330755,1.5135,4358.7,4358.6,1.2256]
[1756997331663,1.1532,4358.7,4358.6,1.2256]
[1756997332754,1.5135,4358.7,4358.6,1.2256]
[1756997332955,1.5135,4358.7,4358.6,0.9896]
[1756997333150,1.5135,4358.7,4358.6,0.236]
[1756997333354,1.5135,4358.7,4358.6,1.2256]
[1756997333666,1.5135,4358.7,4358.6,0.9896]
[1756997333962,1.1532,4358.7,4358.6,1.2256]
[1756997334160,1.1532,4358.7,4358.6,0.9896]
[1756997334557,1.1532,4358.7,4358.6,1.2256]
[1756997334752,1.5135,4358.7,4358.6,0.9896]
[1756997335062,1.5135,4358.1,4357.2,4.09210656]
[1756997335263,1.1532,4357.6,4357.5,2.0625]
[1756997335559,1.1532,4357.6,4357.5,2.2985]
[1756997336855,4.361,4357.6,4357.1,0.9896]
[1756997337060,1.1532,4357.3,4357.2,1.2256]
[1756997337261,1.5135,4357.3,4357.2,1.2256]
[1756997337763,1.1532,4357.3,4357.2,1.8822]
[1756997337960,1.1532,4357.3,4357.2,2.5369]
[1756997339363,1.1532,4357.3,4356.8,0.9896]
[1756997339569,4.361,4357.1,4357.0,0.236]
[1756997339860,1.1532,4356.6,4356.5,1.4084]
[1756997340058,1.1532,4356.6,4356.5,2.301]
[1756997340263,3.2078,4357.1,4356.5,2.301]
[1756997340264,3.2078,4357.1,4357.0,0.4188]
[1756997340458,4.361,4357.1,4357.0,2.065]
[1756997340962,0.3603,4357.0,4356.9,0.236]
[1756997341162,1.1532,4356.6,4356.2,0.9896]
[1756997341360,0.3603,4356.2,4356.1,31.678]
[1756997341560,3.2078,4356.6,4355.8,0.9896]
[1756997341561,1.5135,4355.9,4355.8,0.9896]
[1756997341870,4.361,4355.9,4355.8,1.2256]
[1756997342566,4.361,4355.9,4355.8,1.8822]
[1756997343457,4.361,4355.9,4355.8,1.2256]